[Event "Early-Titled-Tuesday-Blitz-June-18-2024"]
[Site "Chess.com"]
[Date "2024.06.18"]
[Round "9"]
[White "rachidhuilda"]
[Black "JAN2404"]
[Result "1-0"]
[WhiteElo "2406"]
[BlackElo "2058"]
[TimeControl "180+1"]
[EndTime "9:47:18 PDT"]
[Termination "rachidhuilda won on time"]

1. d4 {[%clk 0:03:00.9]} 1... Nf6 {[%clk 0:02:58.6]} 2. Bg5 {[%clk 0:03:00.6]}
2... e6 {[%clk 0:02:57.6]} 3. e4 {[%clk 0:03:00.2]} 3... h6 {[%clk 0:02:57.9]}
4. Bxf6 {[%clk 0:02:59.5]} 4... Qxf6 {[%clk 0:02:57.9]} 5. c3 {[%clk 0:03:00]}
5... d5 {[%clk 0:02:53.7]} 6. Nd2 {[%clk 0:02:59.6]} 6... c5 {[%clk 0:02:47.1]}
7. Ngf3 {[%clk 0:02:57.6]} 7... Nc6 {[%clk 0:02:43.3]} 8. Bb5 {[%clk 0:02:57.6]}
8... Bd7 {[%clk 0:02:39.3]} 9. O-O {[%clk 0:02:47.4]} 9... Be7 {[%clk
0:02:37.7]} 10. exd5 {[%clk 0:02:40.2]} 10... exd5 {[%clk 0:02:36.7]} 11. dxc5
{[%clk 0:02:40.3]} 11... Bxc5 {[%clk 0:02:21.4]} 12. Re1+ {[%clk 0:02:36.7]}
12... Be6 {[%clk 0:02:19.6]} 13. Nb3 {[%clk 0:02:33]} 13... Bb6 {[%clk
0:02:14.7]} 14. Nbd4 {[%clk 0:02:08]} 14... Rc8 {[%clk 0:02:04]} 15. Qe2 {[%clk
0:01:56.4]} 15... Bxd4 {[%clk 0:01:44.9]} 16. Nxd4 {[%clk 0:01:54.6]} 16... O-O
{[%clk 0:01:45.2]} 17. Nxe6 {[%clk 0:01:53]} 17... fxe6 {[%clk 0:01:44.8]} 18.
Qxe6+ {[%clk 0:01:49.9]} 18... Kh8 {[%clk 0:01:43]} 19. Qxf6 {[%clk 0:01:49.9]}
19... Rxf6 {[%clk 0:01:42.3]} 20. f3 {[%clk 0:01:43.7]} 20... Rd6 {[%clk
0:01:11]} 21. Rad1 {[%clk 0:01:41.7]} 21... Rcd8 {[%clk 0:01:10.9]} 22. Kf2
{[%clk 0:01:34]} 22... Kg8 {[%clk 0:01:05.1]} 23. Re2 {[%clk 0:01:23.2]} 23...
Kf7 {[%clk 0:01:01.4]} 24. Red2 {[%clk 0:01:15]} 24... g5 {[%clk 0:00:53.7]} 25.
Ba4 {[%clk 0:01:03.8]} 25... Kf6 {[%clk 0:00:46.6]} 26. Bxc6 {[%clk 0:00:45.9]}
26... bxc6 {[%clk 0:00:45.5]} 27. Rd4 {[%clk 0:00:42.9]} 27... Rb8 {[%clk
0:00:32.4]} 28. b3 {[%clk 0:00:42.5]} 28... h5 {[%clk 0:00:27.6]} 29. c4 {[%clk
0:00:40.5]} 29... Ke5 {[%clk 0:00:23.5]} 30. cxd5 {[%clk 0:00:38.1]} 30... Rxd5
{[%clk 0:00:20.5]} 31. R4d2 {[%clk 0:00:36.8]} 31... Rbd8 {[%clk 0:00:19.7]} 32.
Re2+ {[%clk 0:00:35.7]} 32... Kf5 {[%clk 0:00:19.3]} 33. Rc1 {[%clk 0:00:34.2]}
33... c5 {[%clk 0:00:18.7]} 34. Rcc2 {[%clk 0:00:34.2]} 34... a5 {[%clk
0:00:16.9]} 35. Rc4 {[%clk 0:00:33.3]} 35... R8d7 {[%clk 0:00:11.8]} 36. h4
{[%clk 0:00:33]} 36... g4 {[%clk 0:00:10.9]} 37. Kg3 {[%clk 0:00:28]} 37... Rg7
{[%clk 0:00:09.8]} 38. Rf4+ {[%clk 0:00:26.2]} 38... Kg6 {[%clk 0:00:08.9]} 39.
fxg4 {[%clk 0:00:26.6]} 39... Rd3+ {[%clk 0:00:06.3]} 40. Rf3 {[%clk 0:00:26.3]}
40... Rxf3+ {[%clk 0:00:04.1]} 41. gxf3 {[%clk 0:00:27.2]} 41... hxg4 {[%clk
0:00:04.4]} 42. fxg4 {[%clk 0:00:27.1]} 42... Kf6 {[%clk 0:00:05.1]} 43. Rc2
{[%clk 0:00:26.2]} 43... Rc7 {[%clk 0:00:05]} 44. Rc4 {[%clk 0:00:25.3]} 44...
Ke5 {[%clk 0:00:05.5]} 45. h5 {[%clk 0:00:24.5]} 45... Kd5 {[%clk 0:00:06.1]}
46. Kh4 {[%clk 0:00:24.1]} 46... Rf7 {[%clk 0:00:05]} 47. h6 {[%clk 0:00:23.3]}
47... Rf2 {[%clk 0:00:05.6]} 48. g5 {[%clk 0:00:22.4]} 48... Rxa2 {[%clk
0:00:04.7]} 49. Kh5 {[%clk 0:00:21.1]} 49... Ke6 {[%clk 0:00:04.7]} 50. Kg6
{[%clk 0:00:20.5]} 50... Rd2 {[%clk 0:00:01.6]} 51. Rxc5 {[%clk 0:00:20.1]}
51... Rd8 {[%clk 0:00:02.2]} 52. Rxa5 {[%clk 0:00:19]} 52... Rg8+ {[%clk
0:00:02.3]} 53. Kh5 {[%clk 0:00:19.2]} 53... Rb8 {[%clk 0:00:02.4]} 54. Ra3
{[%clk 0:00:18]} 54... Kf7 {[%clk 0:00:02.7]} 55. Ra7+ {[%clk 0:00:17.3]} 55...
Kf8 {[%clk 0:00:02.5]} 56. h7 {[%clk 0:00:16.8]} 56... Rb7 {[%clk 0:00:01.1]}
57. h8=Q+ {[%clk 0:00:16.5]} 1-0

[Event "Early-Titled-Tuesday-Blitz-June-18-2024"]
[Site "Chess.com"]
[Date "2024.06.18"]
[Round "9"]
[White "UnTucopalaTimba"]
[Black "wild3000"]
[Result "1-0"]
[WhiteElo "2102"]
[BlackElo "2398"]
[TimeControl "180+1"]
[EndTime "9:47:19 PDT"]
[Termination "UnTucopalaTimba won on time"]

1. e4 {[%clk 0:02:59.8]} 1... a6 {[%clk 0:00:41.1]} 2. d4 {[%clk 0:02:58.6]}
2... e6 {[%clk 0:00:41]} 3. Nf3 {[%clk 0:02:56.2]} 3... d5 {[%clk 0:00:41.9]} 4.
Nbd2 {[%clk 0:02:53.1]} 4... dxe4 {[%clk 0:00:41.9]} 5. Nxe4 {[%clk 0:02:53.2]}
5... Nd7 {[%clk 0:00:42.8]} 6. c3 {[%clk 0:02:47.4]} 6... Ngf6 {[%clk
0:00:42.8]} 7. Nxf6+ {[%clk 0:02:43.6]} 7... Nxf6 {[%clk 0:00:43.7]} 8. Ne5
{[%clk 0:02:43.4]} 8... Be7 {[%clk 0:00:44.5]} 9. Bd3 {[%clk 0:02:34.8]} 9...
O-O {[%clk 0:00:45.4]} 10. O-O {[%clk 0:02:30.2]} 10... c5 {[%clk 0:00:45.2]}
11. Re1 {[%clk 0:02:27.5]} 11... cxd4 {[%clk 0:00:43.4]} 12. cxd4 {[%clk
0:02:27]} 12... Bd7 {[%clk 0:00:43.8]} 13. Nxd7 {[%clk 0:02:07.3]} 13... Qxd7
{[%clk 0:00:43.8]} 14. Bf4 {[%clk 0:01:58.3]} 14... Nd5 {[%clk 0:00:43.7]} 15.
Be5 {[%clk 0:01:55.7]} 15... Bf6 {[%clk 0:00:42.1]} 16. a3 {[%clk 0:01:50.4]}
16... Bxe5 {[%clk 0:00:41.4]} 17. Rxe5 {[%clk 0:01:42]} 17... Rfd8 {[%clk
0:00:42.3]} 18. Qh5 {[%clk 0:01:28.2]} 18... Nf6 {[%clk 0:00:40.1]} 19. Qf3
{[%clk 0:01:09.1]} 19... Qxd4 {[%clk 0:00:39.5]} 20. Re3 {[%clk 0:01:05]} 20...
Qxb2 {[%clk 0:00:38.9]} 21. Rb1 {[%clk 0:00:53.4]} 21... Qd4 {[%clk 0:00:37.4]}
22. h3 {[%clk 0:00:47.1]} 22... b5 {[%clk 0:00:36.8]} 23. g4 {[%clk 0:00:41.7]}
23... h6 {[%clk 0:00:36]} 24. Kg2 {[%clk 0:00:28.8]} 24... Rac8 {[%clk
0:00:35.7]} 25. Rb4 {[%clk 0:00:24.3]} 25... Qd5 {[%clk 0:00:35.5]} 26. Be4
{[%clk 0:00:20.6]} 26... Nxe4 {[%clk 0:00:35.1]} 27. Rexe4 {[%clk 0:00:20.2]}
27... a5 {[%clk 0:00:30]} 28. Rbd4 {[%clk 0:00:18.2]} 28... Qxd4 {[%clk
0:00:29.1]} 29. Rxd4 {[%clk 0:00:18.3]} 29... Rxd4 {[%clk 0:00:30]} 30. Qb7
{[%clk 0:00:18.1]} 30... Rcd8 {[%clk 0:00:26.9]} 31. Qxb5 {[%clk 0:00:16.7]}
31... a4 {[%clk 0:00:27.8]} 32. Qa5 {[%clk 0:00:14.9]} 32... g6 {[%clk
0:00:22.5]} 33. Qa7 {[%clk 0:00:10.4]} 33... R8d5 {[%clk 0:00:20.7]} 34. Qa8+
{[%clk 0:00:08.3]} 34... Kg7 {[%clk 0:00:13.2]} 35. f3 {[%clk 0:00:08.1]} 35...
Rd2+ {[%clk 0:00:09.5]} 36. Kg3 {[%clk 0:00:07.6]} 36... Ra2 {[%clk 0:00:09.4]}
37. Qxa4 {[%clk 0:00:07.5]} 37... Rd3 {[%clk 0:00:06.9]} 38. Qe8 {[%clk
0:00:06.2]} 38... Raxa3 {[%clk 0:00:06.4]} 39. Qc8 {[%clk 0:00:05]} 39... Rxf3+
{[%clk 0:00:06.4]} 40. Kg2 {[%clk 0:00:05.1]} 40... Rg3+ {[%clk 0:00:04.1]} 41.
Kf2 {[%clk 0:00:05.3]} 41... Rxh3 {[%clk 0:00:03.8]} 42. Qc7 {[%clk 0:00:04.4]}
42... Rhf3+ {[%clk 0:00:02.1]} 43. Ke2 {[%clk 0:00:04.4]} 1-0

[Event "Early-Titled-Tuesday-Blitz-June-18-2024"]
[Site "Chess.com"]
[Date "2024.06.18"]
[Round "9"]
[White "KubaGepard"]
[Black "K_A_S_T_O_R"]
[Result "1-0"]
[WhiteElo "2661"]
[BlackElo "2841"]
[TimeControl "180+1"]
[EndTime "9:47:21 PDT"]
[Termination "KubaGepard won by resignation"]

1. d4 {[%clk 0:02:52]} 1... Nf6 {[%clk 0:02:59.2]} 2. Nf3 {[%clk 0:02:51.1]}
2... e6 {[%clk 0:02:59.3]} 3. g3 {[%clk 0:02:50.5]} 3... b6 {[%clk 0:02:59.2]}
4. Bg2 {[%clk 0:02:50.8]} 4... Bb7 {[%clk 0:02:59.7]} 5. O-O {[%clk 0:02:50.4]}
5... c5 {[%clk 0:03:00.2]} 6. dxc5 {[%clk 0:02:49.6]} 6... Bxc5 {[%clk
0:02:59.7]} 7. c4 {[%clk 0:02:49.3]} 7... O-O {[%clk 0:02:58.8]} 8. Nc3 {[%clk
0:02:49.9]} 8... Be7 {[%clk 0:02:58]} 9. Bf4 {[%clk 0:02:47.8]} 9... d6 {[%clk
0:02:57.5]} 10. Qd2 {[%clk 0:02:46.6]} 10... a6 {[%clk 0:02:50.7]} 11. Rfd1
{[%clk 0:02:46]} 11... Ne8 {[%clk 0:02:51.2]} 12. Rac1 {[%clk 0:02:44.1]} 12...
Nd7 {[%clk 0:02:47.8]} 13. Qc2 {[%clk 0:02:42.9]} 13... Rc8 {[%clk 0:02:46.4]}
14. Ng5 {[%clk 0:02:37.6]} 14... Bxg5 {[%clk 0:02:43.3]} 15. Bxg5 {[%clk
0:02:36.6]} 15... Qxg5 {[%clk 0:02:38.6]} 16. Bxb7 {[%clk 0:02:36]} 16... Rxc4
{[%clk 0:02:38.8]} 17. Bxa6 {[%clk 0:02:35.9]} 17... Rc7 {[%clk 0:02:34.8]} 18.
Qd2 {[%clk 0:02:18.7]} 18... Qa5 {[%clk 0:02:27.5]} 19. Bb5 {[%clk 0:02:02]}
19... Rxc3 {[%clk 0:02:19.8]} 20. Bxd7 {[%clk 0:02:00.8]} 20... Rxc1 {[%clk
0:02:19.6]} 21. Qxc1 {[%clk 0:02:00.6]} 21... d5 {[%clk 0:02:20.1]} 22. Bxe8
{[%clk 0:01:56.9]} 22... Rxe8 {[%clk 0:02:19.9]} 23. Qc6 {[%clk 0:01:57.5]}
23... Rf8 {[%clk 0:02:17.6]} 24. a3 {[%clk 0:01:57.5]} 24... h6 {[%clk
0:02:12.5]} 25. e4 {[%clk 0:01:55.7]} 25... Rd8 {[%clk 0:02:09.3]} 26. Qc7
{[%clk 0:01:51.5]} 26... Qa8 {[%clk 0:01:58.9]} 27. exd5 {[%clk 0:01:45.8]}
27... Rxd5 {[%clk 0:01:50.5]} 28. Rxd5 {[%clk 0:01:43.1]} 28... Qxd5 {[%clk
0:01:51.4]} 29. Qxb6 {[%clk 0:01:43.4]} 29... Qd1+ {[%clk 0:01:51.5]} 30. Kg2
{[%clk 0:01:43.3]} 30... Qd5+ {[%clk 0:01:43.7]} 31. f3 {[%clk 0:01:42.7]} 31...
Qd2+ {[%clk 0:01:43.7]} 32. Qf2 {[%clk 0:01:42.6]} 32... Qd3 {[%clk 0:01:44.2]}
33. a4 {[%clk 0:01:39.4]} 33... Qc4 {[%clk 0:01:43.3]} 34. a5 {[%clk 0:01:38.2]}
34... Qb5 {[%clk 0:01:43.7]} 35. Qd2 {[%clk 0:01:35.7]} 35... e5 {[%clk
0:01:38.3]} 36. b4 {[%clk 0:01:34.4]} 36... f5 {[%clk 0:01:37.1]} 37. Qa2+
{[%clk 0:01:31.7]} 37... Kh7 {[%clk 0:01:30.9]} 38. a6 {[%clk 0:01:31.7]} 38...
e4 {[%clk 0:01:28.5]} 39. fxe4 {[%clk 0:01:30.1]} 39... Qd3 {[%clk 0:01:28.6]}
40. a7 {[%clk 0:01:03.4]} 40... Qxe4+ {[%clk 0:01:28]} 41. Kf2 {[%clk 0:01:03]}
41... Qd4+ {[%clk 0:01:28.1]} 42. Ke2 {[%clk 0:00:59.1]} 42... Qe4+ {[%clk
0:01:28.1]} 43. Kd1 {[%clk 0:00:57.4]} 43... Qh1+ {[%clk 0:01:27.5]} 44. Kc2
{[%clk 0:00:57.6]} 44... Qg2+ {[%clk 0:01:26.3]} 45. Kb3 {[%clk 0:00:57.5]}
45... Qd5+ {[%clk 0:01:26.2]} 46. Ka3 {[%clk 0:00:57.3]} 46... Qd3+ {[%clk
0:01:19.2]} 47. Qb3 {[%clk 0:00:50]} 47... Qa6+ {[%clk 0:01:19.5]} 48. Qa4
{[%clk 0:00:50]} 48... Qd3+ {[%clk 0:01:19.9]} 49. Kb2 {[%clk 0:00:49.8]} 49...
Qd2+ {[%clk 0:01:19.2]} 50. Kb1 {[%clk 0:00:48.4]} 50... Qe1+ {[%clk 0:01:10.4]}
51. Kc2 {[%clk 0:00:48.1]} 51... Qe4+ {[%clk 0:01:06.8]} 52. Kc3 {[%clk
0:00:47.5]} 52... Qe3+ {[%clk 0:01:06.9]} 53. Kc4 {[%clk 0:00:47.5]} 53... Qe2+
{[%clk 0:01:06.8]} 54. Kc5 {[%clk 0:00:47]} 54... Qe5+ {[%clk 0:01:05.9]} 55.
Kb6 {[%clk 0:00:45.7]} 55... Qd4+ {[%clk 0:01:05.1]} 56. Kb7 {[%clk 0:00:38.3]}
56... Qe4+ {[%clk 0:01:03.1]} 57. Kc7 {[%clk 0:00:32.5]} 57... Qe5+ {[%clk
0:00:59.6]} 58. Kb7 {[%clk 0:00:19.4]} 58... Qe4+ {[%clk 0:00:52.1]} 59. Kb6
{[%clk 0:00:15.7]} 59... Qd4+ {[%clk 0:00:51.6]} 60. Kc6 {[%clk 0:00:14.9]}
60... Qe4+ {[%clk 0:00:49.9]} 61. Kd7 {[%clk 0:00:13.7]} 61... Qd5+ {[%clk
0:00:48]} 62. Ke7 {[%clk 0:00:13.1]} 62... Qe5+ {[%clk 0:00:48]} 63. Kf7 {[%clk
0:00:13.2]} 63... Qf6+ {[%clk 0:00:47.4]} 64. Ke8 {[%clk 0:00:13.5]} 64... Qe6+
{[%clk 0:00:47.1]} 65. Kd8 {[%clk 0:00:13.9]} 65... Qd6+ {[%clk 0:00:45.5]} 66.
Qd7 {[%clk 0:00:14]} 66... Qf8+ {[%clk 0:00:41.8]} 67. Kc7 {[%clk 0:00:14.1]}
67... Qxb4 {[%clk 0:00:40.8]} 68. a8=Q {[%clk 0:00:13.9]} 68... Qc5+ {[%clk
0:00:40]} 69. Qac6 {[%clk 0:00:13.9]} 69... Qa5+ {[%clk 0:00:40.2]} 70. Qb6
{[%clk 0:00:14.1]} 1-0

[Event "Early-Titled-Tuesday-Blitz-June-18-2024"]
[Site "Chess.com"]
[Date "2024.06.18"]
[Round "9"]
[White "Feegus"]
[Black "jaramsdal"]
[Result "1-0"]
[WhiteElo "2691"]
[BlackElo "2464"]
[TimeControl "180+1"]
[EndTime "9:47:21 PDT"]
[Termination "Feegus won by checkmate"]

1. e4 {[%clk 0:03:00.9]} 1... c5 {[%clk 0:02:58.8]} 2. d4 {[%clk 0:03:01.1]}
2... cxd4 {[%clk 0:02:56.7]} 3. Qxd4 {[%clk 0:03:02]} 3... Nc6 {[%clk
0:02:55.6]} 4. Qd3 {[%clk 0:03:02.3]} 4... g6 {[%clk 0:02:53.8]} 5. Nc3 {[%clk
0:03:02.4]} 5... Bg7 {[%clk 0:02:53.8]} 6. Nf3 {[%clk 0:03:02.6]} 6... Nf6
{[%clk 0:02:53.4]} 7. Be2 {[%clk 0:03:01.9]} 7... O-O {[%clk 0:02:53.2]} 8. O-O
{[%clk 0:03:02.4]} 8... Nb4 {[%clk 0:02:28.3]} 9. Qd1 {[%clk 0:03:01.2]} 9... d5
{[%clk 0:02:22.8]} 10. exd5 {[%clk 0:02:48.1]} 10... Nfxd5 {[%clk 0:02:20.2]}
11. Nxd5 {[%clk 0:02:45.7]} 11... Qxd5 {[%clk 0:02:19.4]} 12. c3 {[%clk
0:02:43.4]} 12... Qxd1 {[%clk 0:02:15.2]} 13. Rxd1 {[%clk 0:02:40.4]} 13... Nc6
{[%clk 0:01:56.5]} 14. Be3 {[%clk 0:02:33.1]} 14... a5 {[%clk 0:01:51.7]} 15. a4
{[%clk 0:02:29.2]} 15... Be6 {[%clk 0:01:48.6]} 16. Bb6 {[%clk 0:02:25.2]} 16...
Ne5 {[%clk 0:01:14.5]} 17. Nxe5 {[%clk 0:02:20]} 17... Bxe5 {[%clk 0:01:15.4]}
18. Bf3 {[%clk 0:02:18.8]} 18... Ra6 {[%clk 0:01:10.1]} 19. Bc5 {[%clk
0:02:15.1]} 19... Bb3 {[%clk 0:01:00.3]} 20. Rd7 {[%clk 0:02:11.6]} 20... Bd6
{[%clk 0:00:41.9]} 21. Bxb7 {[%clk 0:02:10.9]} 21... Be6 {[%clk 0:00:32.8]} 22.
Bxa6 {[%clk 0:01:30.4]} 22... Bxd7 {[%clk 0:00:32.8]} 23. Bxd6 {[%clk
0:01:26.1]} 23... exd6 {[%clk 0:00:33.7]} 24. b4 {[%clk 0:01:25.6]} 24... Ra8
{[%clk 0:00:27.3]} 25. b5 {[%clk 0:01:16.6]} 25... Bc8 {[%clk 0:00:20]} 26. Bxc8
{[%clk 0:01:04.1]} 26... Rxc8 {[%clk 0:00:20.9]} 27. Ra3 {[%clk 0:01:02.2]}
27... Kf8 {[%clk 0:00:20.5]} 28. Kf1 {[%clk 0:01:01]} 28... Ke7 {[%clk
0:00:20.9]} 29. Ke2 {[%clk 0:01:01.5]} 29... Ke6 {[%clk 0:00:21.3]} 30. Kd3
{[%clk 0:01:02]} 30... Kd5 {[%clk 0:00:21.8]} 31. Rb3 {[%clk 0:01:00.7]} 31...
Kc5 {[%clk 0:00:20.6]} 32. b6 {[%clk 0:00:54.7]} 32... Rb8 {[%clk 0:00:21.1]}
33. b7 {[%clk 0:00:55]} 33... Kc6 {[%clk 0:00:21.6]} 34. Kd4 {[%clk 0:00:55.5]}
34... f6 {[%clk 0:00:20.7]} 35. Rb5 {[%clk 0:00:53.8]} 35... h5 {[%clk
0:00:20.6]} 36. h4 {[%clk 0:00:36.4]} 36... f5 {[%clk 0:00:20.9]} 37. f4 {[%clk
0:00:32.8]} 37... Rxb7 {[%clk 0:00:11.9]} 38. Rxb7 {[%clk 0:00:32.8]} 38... Kxb7
{[%clk 0:00:12.8]} 39. Kd5 {[%clk 0:00:33.4]} 39... Kc7 {[%clk 0:00:13.4]} 40.
c4 {[%clk 0:00:32.6]} 40... Kd7 {[%clk 0:00:10.2]} 41. c5 {[%clk 0:00:31.9]}
41... dxc5 {[%clk 0:00:11.1]} 42. Kxc5 {[%clk 0:00:32.8]} 42... Kc7 {[%clk
0:00:07.1]} 43. Kb5 {[%clk 0:00:33.3]} 43... Kd6 {[%clk 0:00:07.5]} 44. Kxa5
{[%clk 0:00:29.4]} 44... Kc5 {[%clk 0:00:07.9]} 45. g3 {[%clk 0:00:26]} 45...
Kc6 {[%clk 0:00:08.5]} 46. Kb4 {[%clk 0:00:26.2]} 46... Kb6 {[%clk 0:00:08.9]}
47. a5+ {[%clk 0:00:24.8]} 47... Ka6 {[%clk 0:00:08.8]} 48. Ka4 {[%clk 0:00:25]}
48... Ka7 {[%clk 0:00:08.8]} 49. Kb5 {[%clk 0:00:24.9]} 49... Kb7 {[%clk
0:00:09.7]} 50. a6+ {[%clk 0:00:25.2]} 50... Ka7 {[%clk 0:00:09.9]} 51. Ka5
{[%clk 0:00:25.6]} 51... Ka8 {[%clk 0:00:10.3]} 52. Kb6 {[%clk 0:00:26.1]} 52...
Kb8 {[%clk 0:00:10.6]} 53. a7+ {[%clk 0:00:26]} 53... Ka8 {[%clk 0:00:11]} 54.
Ka6 {[%clk 0:00:22.8]} 54... g5 {[%clk 0:00:11.4]} 55. hxg5 {[%clk 0:00:11.1]}
55... h4 {[%clk 0:00:11.5]} 56. g6 {[%clk 0:00:11.7]} 56... hxg3 {[%clk
0:00:11.2]} 57. g7 {[%clk 0:00:12.1]} 57... g2 {[%clk 0:00:12.1]} 58. g8=Q#
{[%clk 0:00:11.5]} 1-0

[Event "Early-Titled-Tuesday-Blitz-June-18-2024"]
[Site "Chess.com"]
[Date "2024.06.18"]
[Round "9"]
[White "GM_dmitrij"]
[Black "Durarbayli"]
[Result "1-0"]
[WhiteElo "3048"]
[BlackElo "2959"]
[TimeControl "180+1"]
[EndTime "9:47:23 PDT"]
[Termination "GM_dmitrij won on time"]

1. e4 {[%clk 0:01:16.9]} 1... e5 {[%clk 0:02:59.5]} 2. Nf3 {[%clk 0:01:16.9]}
2... Nc6 {[%clk 0:03:00.2]} 3. Nc3 {[%clk 0:01:17.5]} 3... Nf6 {[%clk
0:02:59.9]} 4. d4 {[%clk 0:01:18.1]} 4... exd4 {[%clk 0:03:00.3]} 5. Nxd4 {[%clk
0:01:19]} 5... Bb4 {[%clk 0:03:00.5]} 6. Nxc6 {[%clk 0:01:19.5]} 6... bxc6
{[%clk 0:03:01.4]} 7. Bd3 {[%clk 0:01:20]} 7... d5 {[%clk 0:03:01.9]} 8. Bd2
{[%clk 0:01:20.3]} 8... Bg4 {[%clk 0:02:45.2]} 9. f3 {[%clk 0:01:14.3]} 9... Be6
{[%clk 0:02:45]} 10. O-O {[%clk 0:01:09.1]} 10... Rb8 {[%clk 0:02:43.4]} 11. Kh1
{[%clk 0:01:08.4]} 11... h6 {[%clk 0:02:37.3]} 12. Qe1 {[%clk 0:01:07.9]} 12...
dxe4 {[%clk 0:02:26.1]} 13. fxe4 {[%clk 0:01:04.3]} 13... Be7 {[%clk 0:02:15.8]}
14. Qg3 {[%clk 0:01:02.1]} 14... Ng4 {[%clk 0:02:04.7]} 15. Bf4 {[%clk
0:00:50.7]} 15... Rxb2 {[%clk 0:01:25.6]} 16. h3 {[%clk 0:00:49.2]} 16... Bh4
{[%clk 0:01:23.3]} 17. Qf3 {[%clk 0:00:49.3]} 17... Nf6 {[%clk 0:01:14.2]} 18.
Rad1 {[%clk 0:00:37.9]} 18... O-O {[%clk 0:00:43]} 19. Be5 {[%clk 0:00:23.9]}
19... Nd7 {[%clk 0:00:42.1]} 20. Bd4 {[%clk 0:00:15.7]} 20... c5 {[%clk
0:00:42.3]} 21. Bg1 {[%clk 0:00:10.5]} 21... c6 {[%clk 0:00:26.5]} 22. e5 {[%clk
0:00:09.9]} 22... Rb4 {[%clk 0:00:17.9]} 23. a3 {[%clk 0:00:05]} 23... Rd4
{[%clk 0:00:15.3]} 24. Bxd4 {[%clk 0:00:03.7]} 24... cxd4 {[%clk 0:00:16.2]} 25.
Qe4 {[%clk 0:00:03.9]} 25... Re8 {[%clk 0:00:05.2]} 26. Qxd4 {[%clk 0:00:03.9]}
26... Qg5 {[%clk 0:00:02.3]} 27. Ne4 {[%clk 0:00:03.3]} 27... Qxe5 {[%clk
0:00:02]} 28. Qxe5 {[%clk 0:00:03.4]} 28... Nxe5 {[%clk 0:00:02.9]} 29. Nc5
{[%clk 0:00:04]} 29... Nxd3 {[%clk 0:00:01]} 30. cxd3 {[%clk 0:00:03.1]} 30...
Bd5 {[%clk 0:00:01.9]} 31. Ne4 {[%clk 0:00:03.3]} 31... Be7 {[%clk 0:00:01]} 32.
Nc3 {[%clk 0:00:03.7]} 32... Rd8 {[%clk 0:00:01.5]} 33. Nxd5 {[%clk 0:00:03.9]}
33... Rxd5 {[%clk 0:00:02.4]} 34. a4 {[%clk 0:00:04.6]} 34... Bb4 {[%clk
0:00:02.5]} 35. Rf4 {[%clk 0:00:04.6]} 35... a5 {[%clk 0:00:03.1]} 36. Rc4
{[%clk 0:00:04.8]} 36... c5 {[%clk 0:00:03.2]} 37. d4 {[%clk 0:00:05.5]} 37...
cxd4 {[%clk 0:00:03.2]} 38. Rcxd4 {[%clk 0:00:06.3]} 38... Rf5 {[%clk
0:00:04.1]} 39. Re4 {[%clk 0:00:06.2]} 39... Rf2 {[%clk 0:00:04.2]} 40. Ra1
{[%clk 0:00:05.9]} 40... f5 {[%clk 0:00:04.4]} 41. Re3 {[%clk 0:00:05.2]} 41...
f4 {[%clk 0:00:05]} 42. Rf3 {[%clk 0:00:05.6]} 42... Rxf3 {[%clk 0:00:04.9]} 43.
gxf3 {[%clk 0:00:06.5]} 43... Kf7 {[%clk 0:00:05.4]} 44. Rd1 {[%clk 0:00:06.8]}
44... Ke6 {[%clk 0:00:05.6]} 45. Kg2 {[%clk 0:00:07.3]} 45... Ke5 {[%clk
0:00:05.3]} 46. Kf1 {[%clk 0:00:07.7]} 46... g5 {[%clk 0:00:05.9]} 47. Ke2
{[%clk 0:00:08.2]} 47... h5 {[%clk 0:00:06.6]} 48. Rd7 {[%clk 0:00:08.6]} 48...
Kf5 {[%clk 0:00:06.1]} 49. Rd5+ {[%clk 0:00:09]} 49... Kf6 {[%clk 0:00:06.5]}
50. Rb5 {[%clk 0:00:09.9]} 50... Bc3 {[%clk 0:00:05.4]} 51. h4 {[%clk
0:00:09.7]} 51... g4 {[%clk 0:00:03.8]} 52. Rxh5 {[%clk 0:00:10.6]} 52... g3
{[%clk 0:00:04]} 53. Rg5 {[%clk 0:00:11.1]} 53... Bd4 {[%clk 0:00:04.1]} 54. Rg4
{[%clk 0:00:11.5]} 54... Kf5 {[%clk 0:00:04.4]} 55. h5 {[%clk 0:00:11.9]} 55...
Bf6 {[%clk 0:00:05]} 56. h6 {[%clk 0:00:12.3]} 56... Bd4 {[%clk 0:00:05.6]} 57.
h7 {[%clk 0:00:12.2]} 1-0